bitfinex/quotes_SOLUSD_20250722
["timestamp","ask_amount","ask_price","bid_price","bid_amount"]
[1753178922251,24.1382568,197.94,197.9,5.25303628]
[1753178922559,7.35357283,197.95,197.9,12.60660911]
[1753178922753,7.35357283,197.95,197.92,0.7]
[1753178923483,42.78468397,197.92,197.9,0.2]
[1753178923661,23.27178397,197.91,197.9,1e-08]
[1753178923877,16.78468397,197.83,197.8,0.03]
[1753178924189,7.35357283,197.81,197.8,0.03]
[1753178924553,16.78468397,197.83,197.8,0.03]
[1753178924753,24.1382568,197.83,197.8,0.03]
[1753178925585,24.1382568,197.87,197.81,0.7]
[1753178925754,7.35357283,197.87,197.81,8.05357283]
[1753178925954,7.35357283,197.87,197.82,5.05510059]
[1753178926454,16.78468397,197.88,197.8,7.38357283]
[1753178926455,7.35357283,197.85,197.8,5.08536429]
[1753178926654,7.35357283,197.86,197.8,13.13893712]
[1753178926878,7.35357283,197.86,197.81,2.96243958]
[1753178927063,7.35357283,197.86,197.8,5.08536429]
[1753178927268,7.35357283,197.86,197.81,0.7]
[1753178927582,7.35357283,197.86,197.81,3.66351154]
[1753178927782,16.78468397,197.85,197.8,0.03]
[1753178927975,7.35357283,197.84,197.8,0.03]
[1753178928169,8.07357283,197.84,197.8,0.03]
[1753178928855,7.35357283,197.82,197.8,0.03]
[1753178929057,7.35357283,197.81,197.8,0.03]
[1753178930558,24.8582568,197.81,197.8,0.03]
[1753178931379,26.0,197.85,197.8,8.08357283]
[1753178931577,0.72,197.89,197.81,0.7]
[1753178931578,7.35357283,197.87,197.81,0.7]
[1753178931782,7.35357283,197.9,197.83,7.35357283]
[1753178931999,7.35357283,197.92,197.86,7.35357283]
[1753178932289,7.35357283,197.92,197.87,5.05382321]
[1753178932982,7.35357283,197.92,197.87,5.70382321]
[1753178933289,16.78468397,197.92,197.87,5.70382321]
[1753178933491,8.06357283,197.94,197.88,0.65]
[1753178933864,16.78468397,197.97,197.89,7.35357283]
[1753178934185,0.06,197.95,197.9,8.00357283]
[1753178934387,0.06,197.95,197.91,0.65]
[1753178935180,0.06,197.95,197.91,5.70263712]
[1753178936473,7.41357283,197.95,197.91,5.70263712]
[1753178937087,7.41357283,197.95,197.87,12.63455804]
[1753178937088,24.8482568,197.94,197.86,0.65]
[1753178937385,7.35357283,197.92,197.86,8.00357283]
[1753178937776,7.35357283,197.92,197.86,0.65]
[1753178938378,7.35357283,197.91,197.86,5.70385875]
[1753178938968,7.35357283,197.91,197.86,5.05385875]
[1753178938969,8.06357283,197.91,197.86,5.05385875]
[1753178939170,7.35357283,197.92,197.87,0.65]
[1753178939572,7.35357283,197.91,197.87,0.65]
[1753178939785,7.41357283,197.95,197.89,7.35357283]
[1753178940097,7.35357283,197.94,197.88,8.00357283]
[1753178940404,7.41357283,197.95,197.9,5.05305709]
[1753178940571,7.41357283,197.95,197.9,5.70305709]
[1753178940997,7.35357283,197.93,197.88,5.0533413]
[1753178941201,7.35357283,197.94,197.89,0.65]
[1753178941380,7.35357283,197.94,197.88,12.40691413]
[1753178941577,7.35357283,197.94,197.9,0.65]
[1753178942095,7.35357283,197.94,197.88,13.05691413]
[1753178942997,7.35357283,197.94,197.89,7.35357283]
[1753178943180,8.12357283,197.95,197.9,0.65]
[1753178943381,0.77,197.95,197.9,0.65]
[1753178943586,8.12357283,197.95,197.9,0.65]
[1753178943980,7.35357283,197.93,197.88,5.0533413]
[1753178944179,0.71,197.93,197.88,13.05691413]
[1753178944402,7.35357283,197.94,197.88,13.05691413]
[1753178944596,7.35357283,197.93,197.88,5.7033413]
[1753178945176,26.77,197.95,197.88,5.0533413]
[1753178945381,7.35357283,197.94,197.89,0.65]
[1753178945601,0.77,197.95,197.88,12.40691413]
[1753178945602,0.06,197.95,197.92,7.35357283]
[1753178945801,0.06,197.95,197.94,7.35357283]
[1753178946382,0.06,197.95,197.94,13.0556088]
[1753178946581,0.06,197.95,197.9,7.35357283]
[1753178946890,8.12357283,197.95,197.88,8.00357283]
[1753178947092,8.12357283,197.95,197.89,2.95553248]
[1753178947283,8.12357283,197.95,197.9,2.95603664]
[1753178947486,8.12357283,197.95,197.88,8.00357283]
[1753178947928,8.12357283,197.95,197.89,2.95809532]
[1753178948212,7.35357283,197.94,197.88,8.00357283]
[1753178948409,7.35357283,197.94,197.89,2.96016165]
[1753178948599,7.35357283,197.94,197.89,5.05331244]
[1753178948816,7.35357283,197.9,197.84,5.05458956]
[1753178949115,8.06357283,197.89,197.82,12.40867342]
[1753178949281,7.35357283,197.88,197.83,2.96381545]
[1753178949477,7.35357283,197.88,197.84,2.96381545]
[1753178949684,7.35357283,197.88,197.82,12.40867342]
[1753178949888,7.35357283,197.88,197.83,2.96511514]
[1753178950208,7.35357283,197.88,197.82,12.40867342]
[1753178950787,7.35357283,197.88,197.82,13.05867342]
[1753178951408,7.35357283,197.87,197.82,5.70510059]
[1753178951583,7.35357283,197.86,197.82,5.05510059]
[1753178951784,7.35357283,197.84,197.8,0.03]
[1753178952087,7.35357283,197.81,197.8,0.03]
[1753178952597,42.78468397,197.8,197.79,0.2]
[1753178952787,24.8482568,197.8,197.78,0.2]
[1753178953111,42.78468397,197.74,197.72,0.03]
[1753178953283,26.0,197.7,197.68,0.03]
[1753178953489,16.78468397,197.69,197.68,0.03]
[1753178953695,7.35357283,197.69,197.68,0.03]
[1753178953991,29.1966816,197.69,197.68,0.03]
[1753178954184,55.7466816,197.69,197.68,0.03]
[1753178954388,29.7466816,197.69,197.68,0.03]
[1753178954795,16.78468397,197.65,197.61,0.2]
[1753178954996,24.1382568,197.65,197.61,0.2]
[1753178955402,24.6882568,197.65,197.61,0.2]
[1753178956507,29.74770532,197.65,197.61,0.2]
[1753178956995,24.6882568,197.65,197.61,0.2]
[1753178957193,29.74770532,197.65,197.61,0.2]
[1753178959097,0.55,197.69,197.61,0.2]
[1753178959407,24.1382568,197.65,197.61,0.2]
[1753178959803,24.6882568,197.65,197.61,0.2]
[1753178960600,29.74770532,197.65,197.61,0.2]
[1753178960911,24.1382568,197.65,197.61,0.2]
[1753178961509,29.19770532,197.65,197.61,0.2]
[1753178961722,24.1382568,197.65,197.61,0.2]
[1753178962016,7.35357283,197.65,197.61,0.2]
[1753178962202,12.41302135,197.65,197.61,0.2]
[1753178962410,29.74770532,197.65,197.61,0.2]
[1753178962607,24.1382568,197.65,197.61,0.2]
[1753178962814,16.78468397,197.65,197.61,0.2]
[1753178963115,24.1382568,197.65,197.61,0.2]
[1753178963922,24.1382568,197.65,197.61,0.91]
[1753178964226,24.1382568,197.65,197.61,0.2]
[1753178965019,29.19770532,197.65,197.61,0.2]
[1753178965427,37.10127815,197.65,197.61,0.2]
[1753178966397,39.73869064,197.65,197.61,0.2]
[1753178967030,42.78468397,197.62,197.61,0.2]
[1753178967320,55.19847337,197.62,197.61,0.2]
[1753178967525,55.74847337,197.62,197.61,0.2]
[1753178968306,16.78468397,197.61,197.6,0.03]
[1753178968504,164.6882568,197.61,197.56,0.03]
[1753178968714,24.1382568,197.57,197.56,0.03]
[1753178969201,24.6882568,197.57,197.56,0.03]
[1753178969407,29.74975399,197.57,197.56,0.03]
[1753178969611,16.78468397,197.49,197.42,0.71]
[1753178969920,50.1382568,197.49,197.42,5.77530573]
[1753178970121,50.1382568,197.49,197.42,0.71]
[1753178970307,50.6382568,197.49,197.42,0.71]
[1753178970623,51.1882568,197.49,197.42,0.71]
[1753178970942,51.1882568,197.49,197.39,0.71]
[1753178971101,51.1882568,197.49,197.39,5.77598459]
[1753178971417,51.1882568,197.49,197.38,0.71]
[1753178971624,56.25180432,197.49,197.38,0.71]
[1753178972325,56.25180432,197.49,197.39,0.71]
[1753178972699,58.81018072,197.49,197.39,0.71]
[1753178973329,58.81018072,197.49,197.38,0.71]
[1753178973929,26.0,197.46,197.41,0.71]
[1753178974104,5.56354752,197.49,197.41,0.71]
[1753178974299,5.56354752,197.49,197.35,13.07690316]
[1753178974300,7.35357283,197.42,197.35,13.07690316]
[1753178974506,7.35357283,197.41,197.36,0.71]
[1753178974809,7.35357283,197.43,197.37,7.35357283]
[1753178975008,7.35357283,197.44,197.38,8.06357283]
[1753178975312,7.35357283,197.43,197.39,0.71]
[1753178975514,7.35357283,197.43,197.39,5.77600787]
[1753178975719,7.35357283,197.41,197.4,0.71]
[1753178975918,7.35357283,197.41,197.37,0.71]
[1753178976142,7.35357283,197.4,197.38,0.71]
[1753178976508,7.35357283,197.39,197.35,0.71]
[1753178976704,7.35357283,197.38,197.35,0.71]
[1753178976912,16.78468397,197.4,197.35,0.71]
[1753178977218,26.0,197.41,197.36,0.71]
[1753178977219,7.35357283,197.41,197.36,0.71]
[1753178977407,33.35357283,197.39,197.36,0.71]
[1753178977604,7.35357283,197.37,197.33,0.71]
[1753178977913,33.35357283,197.39,197.35,0.03]
[1753178978112,7.35357283,197.39,197.36,0.71]
[1753178978302,7.35357283,197.38,197.35,0.03]
[1753178978730,7.35357283,197.38,197.35,0.74]
[1753178979234,7.35357283,197.38,197.36,0.71]
[1753178979402,26.0,197.41,197.36,0.71]
[1753178979605,7.35357283,197.39,197.37,0.71]
[1753178980025,26.0,197.41,197.35,5.09709839]
[1753178980026,7.35357283,197.41,197.38,0.71]
[1753178980213,7.35357283,197.41,197.39,0.71]
[1753178980414,7.35357283,197.41,197.35,12.45067122]
[1753178980415,7.35357283,197.4,197.36,0.71]
[1753178980815,5.06518875,197.43,197.37,0.71]
[1753178981025,7.35357283,197.41,197.37,0.71]
[1753178981330,7.35357283,197.41,197.38,0.71]
[1753178981638,7.35357283,197.41,197.35,5.09709839]
[1753178981639,31.06570325,197.41,197.35,5.80709839]
[1753178981839,7.35357283,197.4,197.35,5.80709839]
[1753178982038,7.35357283,197.4,197.35,5.09709839]
[1753178982231,7.35357283,197.4,197.36,0.71]
[1753178982435,7.35357283,197.39,197.36,0.71]
[1753178982939,31.06567181,197.41,197.35,0.03]
[1753178982940,7.35357283,197.38,197.35,0.03]
[1753178983239,7.35357283,197.38,197.35,0.74]
[1753178983408,7.35357283,197.38,197.35,0.03]
[1753178983608,7.35357283,197.37,197.35,0.03]
[1753178984342,7.35357283,197.37,197.35,0.74]
[1753178984546,7.35357283,197.39,197.36,0.71]
[1753178984711,4.17794995,197.49,197.38,7.35357283]
[1753178985039,7.35357283,197.48,197.42,7.35357283]
[1753178985342,7.35357283,197.46,197.42,0.71]
[1753178985640,7.35357283,197.44,197.39,0.71]
[1753178986050,7.35357283,197.45,197.4,0.71]
[1753178986338,7.35357283,197.45,197.41,0.71]
[1753178986647,7.35357283,197.45,197.42,0.71]
[1753178987442,7.35357283,197.45,197.39,8.06357283]
[1753178987834,12.4182154,197.45,197.39,0.71]
[1753178988045,12.4182154,197.45,197.39,8.06357283]
[1753178988630,7.35357283,197.45,197.39,13.12964271]
[1753178989146,7.35357283,197.45,197.4,0.71]
[1753178989348,12.41826275,197.45,197.41,0.71]
[1753178990321,7.35357283,197.44,197.38,13.12985615]
[1753178990827,7.35357283,197.45,197.39,8.06357283]
[1753178991033,7.35357283,197.45,197.4,8.06357283]
[1753178991344,7.35357283,197.45,197.41,0.71]
[1753178991661,16.78468397,197.46,197.41,0.71]
[1753178991854,7.35357283,197.44,197.41,0.71]
[1753178992313,7.35357283,197.44,197.39,0.7]
[1753178992849,28.63769733,197.49,197.4,8.05357283]
[1753178993045,7.35357283,197.46,197.41,8.05357283]
[1753178993354,7.35357283,197.46,197.42,0.7]
[1753178993517,7.35357283,197.46,197.41,7.35357283]
[1753178993518,7.35357283,197.46,197.43,0.7]
[1753178993718,7.35357283,197.48,197.44,0.7]
[1753178993920,5.06303478,197.51,197.45,0.7]
[1753178994118,7.35357283,197.49,197.45,0.7]
[1753178994346,7.35357283,197.49,197.46,0.7]
[1753178995250,7.35357283,197.48,197.46,0.7]
[1753178995822,47.84771875,197.51,197.46,0.7]
[1753178995823,7.35357283,197.49,197.46,0.7]
[1753178996354,7.35357283,197.52,197.47,0.7]
[1753178996530,7.35357283,197.53,197.47,0.7]
[1753178996845,7.35357283,197.53,197.47,8.05357283]
[1753178997146,7.35357283,197.53,197.48,0.7]
[1753178997335,7.35357283,197.53,197.49,0.7]
[1753178997640,7.35357283,197.53,197.5,0.7]
[1753178997830,7.35357283,197.54,197.5,0.7]
[1753178998250,7.35357283,197.54,197.51,0.7]
[1753178999228,19.97078984,197.57,197.51,0.7]
[1753178999229,7.41357283,197.56,197.52,0.7]
[1753178999421,0.06,197.56,197.53,0.7]
[1753178999629,0.06,197.56,197.54,0.7]
[1753179000028,0.06,197.56,197.52,5.06277845]
[1753179000224,0.06,197.56,197.46,0.50643168]
[1753179000225,7.35357283,197.53,197.46,0.50643168]
[1753179000545,7.35357283,197.47,197.4,6.0322]
[1753179000734,7.35357283,197.45,197.42,0.7]
[1753179000935,7.35357283,197.46,197.42,0.7]
[1753179001133,17.71525087,197.57,197.43,7.35357283]
[1753179001325,26.0,197.54,197.47,7.35357283]
[1753179001522,7.35357283,197.54,197.49,7.35357283]
[1753179001739,7.35357283,197.53,197.47,7.35357283]
[1753179001946,7.35357283,197.53,197.49,0.7]
[1753179002147,7.35357283,197.54,197.5,0.7]
[1753179002337,33.35357283,197.54,197.5,0.7]
[1753179002527,7.35357283,197.53,197.5,0.7]
[1753179003041,33.35357283,197.54,197.48,7.35357283]
[1753179003236,33.35357283,197.54,197.51,0.7]
[1753179003437,7.35357283,197.53,197.48,0.7]
[1753179003637,7.35357283,197.53,197.49,0.7]
[1753179003825,7.35357283,197.52,197.49,0.7]
[1753179004026,7.35357283,197.51,197.46,0.7]
[1753179004246,7.35357283,197.51,197.47,0.7]
[1753179004528,7.35357283,197.52,197.48,0.7]
[1753179004752,7.35357283,197.53,197.48,0.7]
[1753179004946,7.35357283,197.53,197.49,0.7]
[1753179005133,7.35357283,197.53,197.5,0.7]
[1753179005959,7.41357283,197.56,197.51,0.7]
[1753179006434,7.41357283,197.56,197.5,7.35357283]
[1753179006631,0.06,197.56,197.51,8.05357283]
[1753179006833,0.06,197.56,197.51,7.35357283]
[1753179007061,7.35357283,197.55,197.52,0.7]
[1753179007258,7.35357283,197.55,197.49,13.1171145]
[1753179007741,7.35357283,197.55,197.49,12.4171145]
[1753179008052,7.41357283,197.56,197.5,8.05357283]
[1753179008359,0.06,197.56,197.51,8.05357283]
[1753179008570,0.06,197.56,197.52,0.7]
[1753179008730,0.06,197.56,197.53,8.05357283]
[1753179008935,0.06,197.56,197.54,7.35357283]
[1753179009134,0.06,197.56,197.54,8.05357283]
[1753179009356,0.06,197.56,197.55,0.7]
[1753179009552,0.06,197.56,197.55,13.11558244]
[1753179012055,0.06,197.56,197.55,14.78058244]
[1753179014757,1e-08,197.56,197.55,64.23046737]
[1753179015077,0.06,197.6,197.56,16.78468397]
[1753179015239,0.06,197.6,197.59,7.35357283]
[1753179015430,1e-08,197.6,197.59,7.35357283]
[1753179015633,1e-08,197.6,197.59,8.05357283]
[1753179015852,1e-08,197.6,197.59,24.8382568]
[1753179016045,1e-08,197.6,197.59,25.34435528]
[1753179016367,0.2,197.68,197.64,1.5696]
[1753179016535,0.2,197.68,197.67,7.35357283]
[1753179016742,0.2,197.68,197.67,8.05357283]
[1753179016945,7.35357283,197.81,197.7,26.0]
[1753179017149,7.35357283,197.77,197.71,8.05357283]
[1753179017836,7.35357283,197.77,197.72,0.7]
[1753179018245,7.35357283,197.78,197.73,0.7]
[1753179018444,0.69,197.81,197.74,0.7]
[1753179018656,7.35357283,197.81,197.76,7.35357283]
[1753179018849,7.35357283,197.81,197.76,0.7]
[1753179019569,12.40893502,197.81,197.75,7.35357283]
[1753179019764,8.04357283,197.81,197.75,7.35357283]
[1753179019942,7.35357283,197.83,197.77,7.35357283]
[1753179020141,7.35357283,197.83,197.76,13.10997984]
[1753179020546,0.06,197.77,197.76,13.10997984]
[1753179020750,0.06,197.77,197.73,7.35357283]
[1753179021266,0.06,197.77,197.68,7.38357283]
[1753179021267,7.35357283,197.74,197.68,7.38357283]
[1753179021470,7.35357283,197.73,197.68,5.08864075]
[1753179021774,7.35357283,197.72,197.68,5.08864075]
[1753179022243,7.35357283,197.72,197.68,0.03]
[1753179022645,5.74714232,197.75,197.68,0.03]
[1753179022845,7.35357283,197.72,197.68,0.03]
[1753179023252,8.03357283,197.72,197.68,0.03]
[1753179023545,7.35357283,197.72,197.68,0.03]
[1753179026064,5.73713316,197.75,197.68,0.75]
[1753179026263,7.35357283,197.73,197.68,5.80862581]
[1753179026666,7.35357283,197.72,197.68,0.03]
[1753179026859,7.35357283,197.73,197.68,0.03]
[1753179027258,7.35357283,197.72,197.68,0.03]
[1753179027570,8.03357283,197.72,197.68,0.03]
[1753179027864,5.73711385,197.75,197.68,0.75]
[1753179028173,7.35357283,197.72,197.68,0.75]
[1753179028357,7.35357283,197.72,197.68,0.03]
[1753179028557,7.35357283,197.72,197.68,0.75]
[1753179028865,7.35357283,197.72,197.68,0.03]
[1753179029367,7.35357283,197.72,197.68,5.08859707]
[1753179029578,7.35357283,197.71,197.68,0.03]
[1753179029761,7.35357283,197.69,197.68,0.03]
[1753179030156,16.78468397,197.73,197.68,0.03]
[1753179030364,7.35357283,197.71,197.68,0.03]
[1753179030873,7.35357283,197.7,197.68,0.03]
[1753179031066,8.03357283,197.71,197.68,0.03]
[1753179032462,7.35357283,197.69,197.68,0.03]
[1753179033086,8.03357283,197.69,197.68,0.03]
[1753179033570,7.35357283,197.69,197.68,0.03]
[1753179033777,8.03357283,197.69,197.68,0.03]
[1753179034980,29.8766816,197.69,197.68,0.03]
[1753179037578,89.25357283,197.7,197.68,0.03]
[1753179037772,8.03357283,197.69,197.68,0.03]
[1753179038870,7.35357283,197.69,197.68,0.03]
[1753179039259,86.95820294,197.7,197.68,0.03]
[1753179039460,7.35357283,197.69,197.68,0.03]
[1753179040377,8.03357283,197.69,197.68,0.03]
[1753179040880,7.35357283,197.69,197.68,0.03]
[1753179041470,22.52310877,197.69,197.68,0.03]
[1753179041680,29.9366816,197.69,197.68,0.03]
[1753179042865,42.78468397,197.65,197.64,0.03]
[1753179043062,50.1382568,197.65,197.64,0.03]
[1753179043283,50.8182568,197.65,197.64,0.03]
[1753179043581,16.78468397,197.6,197.53,0.72]
[1753179043787,7.35357283,197.57,197.53,0.72]
[1753179043984,7.35357283,197.57,197.53,5.7824498]
[1753179044168,7.35357283,197.57,197.54,0.72]
[1753179044375,7.35357283,197.6,197.55,0.72]
[1753179044578,7.35357283,197.62,197.56,7.35357283]
[1753179044888,7.35357283,197.62,197.57,5.78136987]
[1753179045261,7.35357283,197.61,197.57,5.78136987]
[1753179045692,7.35357283,197.61,197.57,5.78141749]
[1753179046091,7.35357283,197.61,197.57,5.06141749]
[1753179046595,7.85357283,197.61,197.57,5.06141749]
[1753179046902,7.85357283,197.61,197.58,5.78123985]
[1753179047273,0.5,197.61,197.59,0.72]
[1753179047964,42.78468397,197.66,197.6,0.72]
[1753179048167,7.35357283,197.65,197.6,0.72]
[1753179048385,7.35357283,197.65,197.61,0.72]
[1753179048693,0.06,197.69,197.63,7.35357283]
[1753179049000,0.06,197.69,197.64,6.28567496]
[1753179049313,0.06,197.69,197.68,7.35357283]
[1753179049589,0.06,197.69,197.67,7.35357283]
[1753179049790,0.06,197.69,197.66,7.35357283]
[1753179049983,0.06,197.69,197.65,0.72]
[1753179050182,7.41357283,197.69,197.64,5.05970451]
[1753179050574,7.41357283,197.69,197.63,5.77994357]
[1753179051769,7.35357283,197.68,197.63,5.77994357]
[1753179052094,7.41357283,197.69,197.64,0.72]
[1753179052394,33.41357283,197.69,197.65,0.72]
[1753179052581,33.41357283,197.69,197.63,12.4135164]
[1753179052774,0.06,197.69,197.66,0.72]
[1753179052976,0.06,197.69,197.67,0.72]
[1753179055677,0.06,197.69,197.67,5.77888456]
[1753179056007,0.06,197.69,197.68,0.72]
[1753179056181,0.06,197.69,197.68,8.07357283]
[1753179057492,0.06,197.69,197.68,13.13225352]
[1753179065586,1e-08,197.69,197.68,14.66315352]
[1753179065788,1e-08,197.69,197.68,31.44783749]
[1753179068404,1e-08,197.69,197.68,5.05868069]
[1753179068604,1e-08,197.69,197.66,12.41276538]
[1753179068790,1e-08,197.69,197.66,13.13276538]
[1753179068993,1e-08,197.69,197.68,7.35357283]
[1753179069393,1e-08,197.69,197.68,8.07357283]
[1753179070316,1e-08,197.69,197.68,13.13225352]
[1753179073421,1e-08,197.69,197.68,10.38167562]
[1753179073814,1e-08,197.69,197.68,5.05868069]
[1753179074316,1e-08,197.69,197.66,5.05913066]
[1753179075732,1e-08,197.69,197.67,7.36909494]
[1753179076022,1e-08,197.69,197.68,7.36909494]
[1753179077417,1e-08,197.69,197.66,5.56504991]
[1753179077620,1e-08,197.69,197.68,12.42777563]
[1753179077916,1e-08,197.69,197.68,5.05868069]
[1753179078119,1e-08,197.69,197.68,12.42777563]
[1753179079019,1e-08,197.69,197.66,5.05895955]
[1753179079400,1e-08,197.69,197.66,12.42805449]
[1753179079819,1e-08,197.69,197.68,7.36909494]
[1753179083924,1e-08,197.69,197.68,12.42777563]
[1753179084125,1e-08,197.69,197.68,14.03537563]
[1753179085707,0.06,197.77,197.71,26.0]
[1753179085910,0.06,197.77,197.76,7.36909494]
[1753179087735,0.06,197.77,197.76,12.42572924]
[1753179090937,0.06,197.81,197.79,26.0]
[1753179091118,1e-08,197.81,197.8,7.87465611]
[1753179091318,1e-08,197.81,197.8,24.65934008]
[1753179091741,1e-08,197.81,197.8,29.7149518]
[1753179093030,0.06,197.94,197.83,26.0]
[1753179093230,0.06,197.94,197.88,7.36909494]
[1753179093839,0.06,197.94,197.88,12.42266275]
[1753179095020,7.36909494,197.9,197.81,0.50553561]
[1753179095227,7.36909494,197.88,197.82,5.05510059]
[1753179095542,1.5443,197.9,197.84,7.36909494]
[1753179095733,1.5443,197.9,197.82,5.05510059]
[1753179095734,1.5443,197.9,197.85,7.36909494]
[1753179096046,1.5443,197.9,197.86,5.05407864]
[1753179096243,1.5443,197.9,197.86,12.42317358]
[1753179096424,7.36909494,197.91,197.86,5.05407864]
[1753179096628,7.36909494,197.9,197.85,5.05429865]
[1753179097134,9.64930757,197.91,197.85,5.05429865]
[1753179097323,4.59646706,197.91,197.85,5.05429865]
[1753179097625,5.05258928,197.92,197.86,4.59646706]
[1753179097626,4.59646706,197.92,197.86,4.59646706]
[1753179098022,4.59646706,197.92,197.85,4.59646706]
[1753179098238,4.59646706,197.92,197.86,4.59646706]
[1753179099523,1.568,197.94,197.86,4.59646706]
[1753179099730,6.16446706,197.94,197.88,4.59646706]
[1753179099940,4.59646706,197.93,197.87,4.59646706]
[1753179100344,1.568,197.94,197.87,4.59646706]
[1753179100650,4.59646706,197.93,197.87,4.59646706]
[1753179101354,9.64898609,197.93,197.87,4.59646706]
[1753179101645,4.59646706,197.91,197.85,9.65075075]
[1753179101946,4.59646706,197.91,197.85,5.05428369]
[1753179102147,4.59646706,197.91,197.85,9.65075075]
[1753179102342,9.64930574,197.91,197.85,9.65075075]
[1753179102750,5.25333252,197.89,197.82,26.0]
[1753179102925,4.59646706,197.88,197.82,4.59646706]
[1753179103249,9.84979958,197.89,197.82,4.59646706]
[1753179104532,4.59646706,197.87,197.81,4.59646706]
[1753179104753,4.59646706,197.86,197.8,9.65207878]
[1753179104935,11.77313252,197.89,197.81,4.59646706]
[1753179105129,4.59646706,197.87,197.81,4.59646706]
[1753179105950,4.59646706,197.88,197.82,9.65156765]
[1753179106344,11.77313252,197.89,197.81,9.68178629]
[1753179106345,4.59646706,197.87,197.81,9.68178629]
[1753179107562,0.59610041,197.87,197.81,9.68178629]
[1753179107938,4.59646706,197.85,197.81,0.03]
[1753179108762,4.59646706,197.84,197.81,0.03]
[1753179109363,4.59646706,197.83,197.81,0.03]
[1753179110467,9.65139124,197.83,197.81,0.03]
[1753179111148,21.38115103,197.82,197.81,0.03]
[1753179111352,4.59646706,197.82,197.81,0.03]
[1753179111957,6.62248924,197.85,197.81,0.03]
[1753179112163,6.16436706,197.85,197.81,0.03]
[1753179112454,26.0,197.86,197.81,0.03]
[1753179112455,4.59646706,197.86,197.81,0.03]
[1753179113959,4.59646706,197.88,197.82,4.59646706]
[1753179114165,11.31626706,197.89,197.83,4.59646706]
[1753179114349,16.36957969,197.89,197.83,4.59646706]
[1753179114542,4.59646706,197.88,197.82,4.59646706]
[1753179114742,4.59646706,197.87,197.81,4.62646706]
[1753179115150,4.59646706,197.86,197.81,0.03]
[1753179115347,4.59646706,197.84,197.81,0.03]
[1753179115761,9.65106476,197.84,197.81,0.03]
[1753179116451,5.0545977,197.84,197.81,0.03]
[1753179116650,4.59646706,197.83,197.81,0.03]
[1753179117682,4.59646706,197.82,197.81,0.03]
[1753179117979,4.59646706,197.83,197.81,0.03]
[1753179118964,52.43625162,197.82,197.81,0.03]
[1753179119167,26.0,197.78,197.77,0.03]
[1753179119480,30.59646706,197.78,197.77,0.03]
[1753179119970,47.38115103,197.78,197.77,0.03]
[1753179121066,52.43727399,197.78,197.77,0.03]
[1753179121243,55.20875269,197.78,197.77,0.03]
[1753179121444,50.15262973,197.78,197.77,0.03]
[1753179121865,7.36794576,197.78,197.77,0.03]
[1753179122039,33.36794576,197.78,197.77,0.03]
[1753179122449,24.15262973,197.78,197.77,0.03]
[1753179123048,16.78468397,197.74,197.65,0.03]
[1753179123254,24.15262973,197.74,197.65,0.03]
[1753179123645,24.15262973,197.74,197.65,5.08937424]
[1753179124572,26.0,197.71,197.65,0.03]
[1753179124774,24.15262973,197.66,197.65,0.03]
[1753179125154,29.21182228,197.66,197.65,0.03]
[1753179125576,16.78468397,197.66,197.65,0.03]
[1753179125748,7.36794576,197.66,197.65,0.03]
[1753179125959,26.0,197.69,197.65,0.03]
[1753179126250,7.36794576,197.67,197.65,0.03]
[1753179126663,7.36794576,197.69,197.65,0.03]
[1753179126870,7.36794576,197.7,197.65,0.03]
[1753179127047,7.36794576,197.7,197.65,5.08944852]
[1753179127862,16.78468397,197.76,197.67,7.36794576]
[1753179128047,7.36794576,197.74,197.68,7.36794576]
[1753179128366,7.36794576,197.73,197.65,17.73806982]
[1753179128559,7.36794576,197.73,197.67,7.36794576]
[1753179128757,16.78468397,197.78,197.65,17.73806982]
[1753179128961,7.36794576,197.73,197.67,7.36794576]
[1753179129162,16.78468397,197.78,197.65,17.73806982]
[1753179129163,7.36794576,197.74,197.68,12.42662645]
[1753179133881,7.36794576,197.73,197.68,5.05868069]